[Event "III Menorca Open-A 2024"]
[Site "Ciutadella Menorca"]
[Date "2024.04.04"]
[Round "4.5"]
[White "Erigaisi Arjun"]
[Black "Vogel, Roven"]
[Result "1-0"]
[ECO "C88"]
[WhiteElo "2748"]
[BlackElo "2528"]
[Annotator "TA"]
[PlyCount "71"]
[EventDate "2024.04.02"]
[EventType "swiss"]
[EventCountry "ESP"]
[SourceTitle "playchess.com"]
[Source "ChessBase"]
[SourceQuality "1"]
[TimeControl "5400+30"]

{[%evp 19,71,25,20,15,22,32,15,16,25,21,31,6,38,57,56,58,43,39,47,29,66,36,31,29,54,52,47,18,7,6,4,16,16,11,22,0,158,161,140,46,348,354,564,538,531,443,555,541,734,453,1102,1101,29994,29994]} 1. e4 {[%emt 0:01:25]} e5 {[%emt 0:00:03]} 2. Nf3 {[%emt 0:00:06]} Nc6 {[%emt 0:00:08]} 3. Bb5 {[%emt 0:00:06]} a6 {[%emt 0:00:28]} 4. Ba4 {[%emt 0:00:05]} Nf6 {[%emt 0:00:05]} 5. O-O {[%emt 0:00:06]} Be7 {[%emt 0:00:05]} 6. Re1 {[%emt 0:00:05]} b5 {[%emt 0:00:06]} 7. Bb3 {[%emt 0:00:04]} O-O {[%emt 0:00:05]} 8. h3 {[%emt 0:00:25]} Bb7 {[%emt 0:03:48]} 9. d3 {[%emt 0:00:06]} d6 {[%emt 0:00:17]} 10. a3 {[%emt 0:00:06]} Nb8 {[%emt 0:04:32]} 11. Nbd2 {[%emt 0:02:21]} Nbd7 {[%emt 0:01:03]} 12. Nf1 {[%emt 0:00:08]} Re8 {[%emt 0:05:01]} 13. Ng3 {[%emt 0:04:48] The position is equal.} h6 {[%emt 0:05:16]} 14. Ba2 {[%emt 0:15:33]} Bf8 {[%emt 0:00:28]} 15. Nh4 {[%emt 0:00:33]} Nc5 {[%emt 0:07:15]} 16. Ng6 {[%emt 0:02:58]} Ne6 {[%emt 0:04:11]} 17. Nxf8 {[%emt 0:01:22]} Nxf8 {[%emt 0:00:37]} 18. f4 {[%emt 0:06:29]} exf4 {[%emt 0:11:45]} 19. Bxf4 {[%emt 0:00:53]} Ng6 {[%emt 0:02:10]} 20. Rf1 {[%emt 0:05:41][%cal Of4h6] Strongly threatening Bxh6!} d5 {[%emt 0:03:32]} 21. Nh5 {[%emt 0:05:50]} Re6 {[%emt 0:12:00]} 22. Bd2 {[%emt 0:08:00]} c5 {[%emt 0:05:12]} 23. exd5 {[%emt 0:10:09]} Bxd5 {[%emt 0:03:30]} (23... Nxd5 $6 24. Qf3 Qd7 25. Bxh6 $14) 24. Bxd5 {[%emt 0:00:52]} (24. Nxf6+ Rxf6 25. Bxd5 (25. Rxf6 Qxf6 26. Bxd5 Qd4+ $11) 25... Rxf1+ 26. Qxf1 Qxd5) 24... Nxd5 {[%emt 0:01:09]} 25. Qf3 {[%emt 0:00:45]} Ra7 {[%emt 0:00:49]} 26. Rae1 {[%emt 0:02:16]} Rxe1 {[%emt 0:03:20]} 27. Rxe1 {[%emt 0:00:38][%cal Od2h6,Bf1e1,Be1e8,Be8h8,Bh8g8][%mdl 32] Bxh6! is the strong threat.} c4 $2 {[%emt 0:05:41]} (27... Rd7 $11) 28. dxc4 $16 {[%emt 0:03:08]} bxc4 {[%emt 0:00:26]} 29. Bc3 $40 {[%emt 0:02:26][%mdl 128] White has some attack. White has more active pieces.} (29. Bxh6 $16 gxh6 30. Qxd5 Qxd5 31. Nf6+ Kf8 32. Nxd5) 29... Nh4 $2 {[%emt 0:07:19][%mdl 8192] This costs Black the game.} (29... Nxc3 $14 30. Qxc3 f5) 30. Qf2 $18 {[%emt 0:02:52]} Rb7 {[%emt 0:06:38]} (30... Nxc3 $142 31. Qxa7 Na4) 31. Nxg7 {[%emt 0:04:25] Black must now prevent Re8+.} Qg5 {[%emt 0:03:15] aiming for ...Nxc3.} 32. Re8+ {[%emt 0:00:27]} Kh7 {[%emt 0:00:02] [#] And now ...Nxc3 would win.} 33. Rh8+ $3 {[%emt 0:01:23][%mdl 512]} Kg6 {[%emt 0:00:28][%cal Og5g2]} (33... Kxh8 34. Ne6+) 34. Ne6 {[%emt 0:00:11] Nf8+ would kill now.} Qc1+ {[%emt 0:03:28] [#]} (34... Qxg2+ $142 35. Qxg2+ Nxg2 36. Rg8+ Kf5 37. Nd4+ Kf4 38. Rxg2 (38. Kxg2 Nxc3 39. bxc3 Ke3 $18) 38... Nxc3 39. bxc3 Rb1+ 40. Kf2 Ke5) 35. Kh2 $1 {[%emt 0:00:15] Threatening mate with Nf8+.} Nxc3 {[%emt 0:00:34]} 36. Rg8+ {[%emt 0:00:51] Weighted Error Value: White=0.22 (precise) /Black=0.71.  Loses game:     	---       	Black=1      Mistake:       	White=1     	Black=3      Inaccurate:     	White=3     	Black=3      OK:         	White=12    	Black=6      Best:        	---       	Black=2} 1-0

[Event "III Menorca Open-A 2024"]
[Site "Ciutadella Menorca"]
[Date "2024.04.04"]
[Round "4.6"]
[White "Lamard, Guillaume"]
[Black "Nihal Sarin"]
[Result "0-1"]
[ECO "E08"]
[WhiteElo "2495"]
[BlackElo "2698"]
[Annotator "TA"]
[PlyCount "132"]
[EventDate "2024.04.02"]
[EventType "swiss"]
[EventCountry "ESP"]
[SourceTitle "playchess.com"]
[Source "ChessBase"]
[SourceQuality "1"]
[TimeControl "5400+30"]

{[%evp 56,132,-17,-15,-23,-23,-20,-26,-21,-32,-38,-31,-37,-38,-28,-68,-6,-145,-130,-154,-135,-172,-139,-161,-137,-195,-170,-169,0,-179,-184,-217,-175,-257,-236,-289,-282,-271,-223,-311,-160,-163,-136,-323,-274,-553,-529,-540,-539,-2710,-3218,-2911,-2829,-2335,-723,-2198,-1810,-3821,-3218,-29955,-29955,-1906,-2165,-29955,-29952,-6629,-8498,-29963,-29969,-29967,-29969,-29966,-29965,-29971,-29973,-29982,-29983,-29980,-29981]} 1. d4 {[%emt 0:00:03]} Nf6 {[%emt 0:03:45]} 2. c4 {[%emt 0:00:04]} e6 {[%emt 0:00:48]} 3. Nf3 {[%emt 0:00:04]} d5 {[%emt 0:05:42]} 4. g3 {[%emt 0:00:04]} Bb4+ {[%emt 0:02:25]} 5. Bd2 {[%emt 0:00:04]} Be7 {[%emt 0:00:09]} 6. Bg2 {[%emt 0:00:04]} c6 {[%emt 0:00:06]} 7. Qc2 {[%emt 0:00:30]} Nbd7 {[%emt 0:00:16]} 8. O-O {[%emt 0:00:10]} O-O {[%emt 0:00:23]} 9. Bf4 {[%emt 0:00:09]} a5 {[%emt 0:01:23]} 10. h4 {[%emt 0:00:27] E08: Closed Catalan: Main Line: 7 Qc2.} h6 {[%emt 0:01:54]} 11. Nbd2 {[%emt 0:00:05]} Nh5 {[%emt 0:01:38]} 12. e3 {[%emt 0:00:06]} a4 {[%emt 0:14:27]} 13. Rac1 {[%emt 0:01:02]} Nb6 $146 {[%emt 0:18:30]} ({Predecessor:} 13... Nxf4 14. exf4 Qa5 15. Qd3 Rd8 16. Rfd1 Bf8 17. Qe2 Qc7 18. Kh2 Qb8 19. Nf1 Nf6 {½-½ Schmitt,D (2250)-Weglicki,S (2203) POL-ch67 sf email 2022}) 14. c5 {[%emt 0:19:12]} Nd7 {[%emt 0:00:34]} 15. Rfe1 {[%emt 0:00:22]} f5 {[%emt 0:08:23]} 16. Be5 {[%emt 0:07:02]} Nhf6 {[%emt 0:00:32]} 17. b4 {[%emt 0:02:14]} Ne4 {[%emt 0:00:56]} 18. a3 {[%emt 0:02:51]} Ndf6 {[%emt 0:01:05]} 19. Nh2 {[%emt 0:14:04]} Nd7 {[%emt 0:09:39]} 20. Ndf1 {[%emt 0:05:59]} Nxe5 {[%emt 0:00:26]} 21. dxe5 {[%emt 0:00:10]} Bd7 {[%emt 0:00:06]} 22. f3 {[%emt 0:01:56]} Nxg3 {[%emt 0:01:37]} 23. Nxg3 {[%emt 0:00:59]} Bxh4 {[%emt 0:00:29]} 24. Nhf1 {[%emt 0:06:50]} f4 {[%emt 0:05:01]} 25. exf4 {[%emt 0:02:11]} Rxf4 {[%emt 0:00:13]} 26. Qd2 {[%emt 0:06:05]} Bg5 {[%emt 0:06:16]} 27. Qd3 {[%emt 0:00:07]} Rh4 {[%emt 0:08:20]} 28. Rcd1 {[%emt 0:14:46]} Bf4 {[%emt 0:01:11]} 29. Qg6 {[%emt 0:03:38]} Qe7 {[%emt 0:08:46]} 30. Nh5 {[%emt 0:01:39]} Be8 {[%emt 0:00:00]} 31. Nf6+ {[%emt 0:00:06]} Qxf6 $1 {[%emt 0:00:00]} 32. Qxe8+ {[%emt 0:00:08]} Rxe8 {[%emt 0:00:00]} 33. exf6 {[%emt 0:00:03]} gxf6 {[%emt 0:00:00]} 34. Kf2 {[%emt 0:03:56]} Kf7 {[%emt 0:00:00]} 35. Re2 {[%emt 0:03:07]} Rg8 {[%emt 0:00:00]} (35... f5 $15) 36. Rd3 {[%emt 0:00:33] [#]} (36. b5 $1 $11) 36... f5 $1 $17 {[%emt 0:00:00]} 37. Ke1 {[%emt 0:02:12]} Kf6 {[%emt 0:00:00]} 38. Ne3 {[%emt 0:00:48]} h5 {[%emt 0:00:00]} 39. Nf1 {[%emt 0:03:42]} Rg7 {[%emt 0:00:52]} 40. Rd1 {[%emt 0:00:35]} (40. Kd1 $17) 40... Bh6 $19 {[%emt 0:01:37]} 41. Kf2 {[%emt 0:00:37]} Bf4 $2 {[%emt 0:00:31]} (41... e5 $19 42. Rb1 d4) 42. Rde1 $2 {[%emt 0:00:12]} (42. Ke1 $1 $11 {and White stays safe.}) 42... e5 $19 {[%emt 0:00:21]} 43. Rd1 {[%emt 0:00:10]} e4 {[%emt 0:01:41]} 44. fxe4 {[%emt 0:00:04]} (44. Ke1 {was worth a try.}) 44... fxe4 $19 {[%emt 0:00:05]} 45. Bxe4 {[%emt 0:01:38]} dxe4 {[%emt 0:00:04]} 46. Rxe4 {[%emt 0:00:03]} Rhg4 {[%emt 0:00:28]} 47. Rde1 {[%emt 0:01:34]} Bg5 {[%emt 0:02:30]} (47... Kg5 $19 {...Rf7 would now be deadly.} 48. Re7 Rxe7 49. Rxe7 Bc1) 48. Rxg4 $17 {[%emt 0:01:04]} hxg4 {[%emt 0:00:01]} 49. Kg3 $2 {[%emt 0:00:07]} (49. Re8 $17) 49... Kf5 {[%emt 0:00:26]} 50. b5 $2 {[%emt 0:01:15]} (50. Re8) 50... Rd7 {[%emt 0:00:54]} ({Weaker is} 50... cxb5 51. Rb1 $17) 51. bxc6 {[%emt 0:00:35]} bxc6 {[%emt 0:00:01]} ({Not} 51... Rd3+ 52. Kg2 bxc6 53. Ng3+ Kf6 54. Ne4+ Kg6 55. Nxg5 $15) 52. Ne3+ {[%emt 0:00:11]} Bxe3 {[%emt 0:00:12]} 53. Rxe3 {[%emt 0:00:02]} Rd5 {[%emt 0:01:17]} 54. Rc3 {[%emt 0:01:05]} Rd4 {[%emt 0:00:09]} (54... Rd2 $142 55. Re3 Rc2) 55. Re3 {[%emt 0:00:35]} Rc4 {[%emt 0:00:07]} 56. Rd3 {[%emt 0:00:31]} Rxc5 {[%emt 0:00:13]} 57. Rd4 {[%emt 0:00:03]} Rc3+ {[%emt 0:00:09]} 58. Kg2 {[%emt 0:00:03]} Rxa3 {[%emt 0:00:42]} 59. Rc4 {[%emt 0:00:03]} g3 {[%emt 0:00:47]} 60. Rc5+ {[%emt 0:00:18]} Ke4 {[%emt 0:01:42]} 61. Rxc6 {[%emt 0:00:03]} Rd3 {[%emt 0:00:06]} 62. Rc4+ {[%emt 0:00:49]} Rd4 {[%emt 0:00:02]} 63. Rc3 {[%emt 0:00:04]} Rd2+ {[%emt 0:00:38]} 64. Kg1 {[%emt 0:00:56]} Rd3 {[%emt 0:00:10]} 65. Rc4+ {[%emt 0:00:19]} Kf3 {[%emt 0:00:05]} 66. Rc1 {[%emt 0:00:20]} a3 {[%emt 0:00:21]} 0-1

[Event "III Menorca Open-A 2024"]
[Site "Ciutadella Menorca"]
[Date "2024.04.04"]
[Round "4.7"]
[White "Cuenca Jimenez, Jose Fernando"]
[Black "Van Foreest, Jorden"]
[Result "0-1"]
[ECO "B13"]
[WhiteElo "2500"]
[BlackElo "2672"]
[Annotator "TA"]
[PlyCount "64"]
[EventDate "2024.04.02"]
[EventType "swiss"]
[EventCountry "ESP"]
[SourceTitle "playchess.com"]
[Source "ChessBase"]
[SourceQuality "1"]
[TimeControl "5400+30"]

{[%evp 9,64,0,0,6,18,19,25,11,10,13,18,5,14,2,24,24,27,27,24,25,42,16,63,50,50,20,25,0,-1,-7,-17,0,0,0,0,-3,0,0,0,0,-7,-35,-41,-33,-36,-91,-96,-93,-87,-284,-289,-277,-276,-284,-136,-272,-260]} 1. d4 {[%emt 0:00:03]} d5 {[%emt 0:00:48]} 2. Bf4 {[%emt 0:00:35]} c5 {[%emt 0:01:27]} 3. e3 {[%emt 0:00:09]} cxd4 {[%emt 0:00:59]} 4. exd4 {[%emt 0:00:09]} Nc6 {[%emt 0:00:33]} 5. Nf3 {[%emt 0:00:31]} Bf5 {[%emt 0:02:54]} 6. c4 {[%emt 0:02:10]} Nf6 {[%emt 0:02:36]} 7. c5 {[%emt 0:04:28]} g6 {[%emt 0:03:05]} 8. Qb3 {[%emt 0:13:59] White has an edge.} Qc8 {[%emt 0:01:50]} 9. Nc3 {[%emt 0:06:40][%cal Oc3b5] Strongly threatening Nb5!} Bg7 {[%emt 0:00:54]} 10. Be2 {[%emt 0:01:17][%cal Oa1d1]} O-O {[%emt 0:01:02]} 11. O-O {[%emt 0:01:19][%cal Oa1d1]} Rd8 {[%emt 0:05:14]} 12. h3 {[%emt 0:05:26]} Be4 {[%emt 0:18:53] ...Bxf3 would now be deadly.} 13. Rfd1 {[%emt 0:14:28]} Bxf3 {[%emt 0:01:21]} 14. Bxf3 {[%emt 0:01:16]} e6 {[%emt 0:00:37]} 15. Rac1 {[%emt 0:07:31]} Kh8 {[%emt 0:03:33]} (15... Ne8 $11) 16. Nb5 {[%emt 0:04:09]} Qd7 {[%emt 0:06:06]} 17. Nd6 {[%emt 0:03:08]} Ne8 {[%emt 0:06:05][%cal Re8d6] A dynamic duo of knights.} 18. Qxb7 {[%emt 0:06:16]} (18. Nxb7 $2 Rdb8 (18... Nxd4 $2 19. Rxd4 Bxd4 20. c6 $18) 19. Bxb8 Rxb8 $19) 18... Qxb7 {[%emt 0:00:13]} 19. Nxb7 {[%emt 0:00:03]} Rd7 {[%emt 0:00:12]} 20. Nd6 {[%emt 0:00:56]} Nxd6 {[%emt 0:06:33]} 21. cxd6 {[%emt 0:05:21]} Nxd4 {[%emt 0:00:11]} 22. Rc7 {[%emt 0:00:04]} Rxc7 {[%emt 0:00:31]} 23. dxc7 {[%emt 0:00:02]} Rc8 {[%emt 0:00:08]} 24. Rd3 {[%emt 0:11:28]} g5 {[%emt 0:00:46]} 25. Bg3 {[%emt 0:04:58]} (25. Bxg5 Nxf3+ 26. Rxf3 Rxc7 $17) 25... f5 {[%emt 0:02:21] aiming for ...f4.} (25... Nxf3+ $2 26. gxf3 (26. Rxf3 Bd4 $18) 26... Bxb2 27. Rb3 $18) (25... Nb5 $2 26. Rb3 Nxc7 27. Bxc7 $18) 26. Bd6 {[%emt 0:04:29]} Nb5 {[%emt 0:00:47][%csl LRb2,LRc7,LRd6]} 27. Be7 {[%emt 0:00:02] [#]} (27. Bh2 $15 Nxc7 (27... Bxb2 $2 28. Rb3 $18) 28. Bxc7 Rxc7 29. Re3) 27... h6 $1 $17 {[%emt 0:01:12]} (27... Bxb2 $2 {loses.} 28. Rb3 (28. Bxg5 Nxc7 29. Rb3 Bd4 $14) 28... Rxc7 29. Bxg5 $18 (29. Rxb2 Rxe7 30. Rxb5 Kg7 $18)) (27... Nxc7 $6 28. Bxg5 Rb8 29. b3 $14) 28. Rb3 {[%emt 0:02:57]} Rxc7 {[%emt 0:00:26] White must now prevent ...Nd4.} ({But not} 28... Nxc7 29. Bc5 $11) 29. Bxg5 $2 {[%emt 0:00:20] Now White is beyond hope.} (29. Rxb5 $17 Rxe7 30. Rb8+ Kh7 31. b3) 29... hxg5 $19 {[%emt 0:01:21]} 30. Rxb5 {[%emt 0:00:02]} Rc1+ {[%emt 0:00:25]} 31. Kh2 {[%emt 0:00:01]} Be5+ {[%emt 0:00:32]} 32. g3 {[%emt 0:00:01] [#]} Rc2 $1 {[%emt 0:00:10][%csl LRb2,LRf2] Weighted Error Value: White=0.21 (precise) /Black=0.04 (flawless) .  Loses game:     	White=1     	---        Mistake:       	White=1     	Black=1      Inaccurate:     	White=5     	---        OK:         	White=9     	Black=13     Best:        	White=1     	Black=3      Strong:       	---       	Black=2} 0-1

[Event "III Menorca Open-A 2024"]
[Site "Ciutadella Menorca"]
[Date "2024.04.04"]
[Round "4.8"]
[White "Aravindh, Chithambaram VR."]
[Black "Petkov, Momchil"]
[Result "1-0"]
[ECO "C77"]
[WhiteElo "2662"]
[BlackElo "2502"]
[Annotator "TA"]
[PlyCount "45"]
[EventDate "2024.04.02"]
[EventType "swiss"]
[EventCountry "ESP"]
[SourceTitle "playchess.com"]
[Source "ChessBase"]
[SourceQuality "1"]
[TimeControl "5400+30"]

{[%evp 11,45,38,29,23,43,19,20,16,22,8,17,0,0,-19,-1,0,0,0,25,23,37,0,121,155,185,205,573,542,533,547,531,508,847,854,806,808]} 1. e4 {[%emt 0:00:05]} e5 {[%emt 0:05:05]} 2. Nf3 {[%emt 0:00:14]} Nc6 {[%emt 0:00:12]} 3. Bb5 {[%emt 0:00:11]} a6 {[%emt 0:00:18]} 4. Ba4 {[%emt 0:00:07]} Nf6 {[%emt 0:00:24]} 5. Nc3 {[%emt 0:01:29]} d6 {[%emt 0:01:51]} 6. Bxc6+ {[%emt 0:08:27]} bxc6 {[%emt 0:00:09]} 7. d4 {[%emt 0:00:04]} Nd7 {[%emt 0:00:38]} 8. dxe5 {[%emt 0:07:23]} dxe5 {[%emt 0:04:35]} 9. O-O {[%emt 0:01:33] The position is equal.} Bd6 {[%emt 0:04:23]} 10. b3 {[%emt 0:01:36]} O-O {[%emt 0:03:36]} 11. Ne2 {[%emt 0:01:58][%cal Bc3e2,Be2g3,Bg3f5][%mdl 32]} a5 {[%emt 0:06:53]} 12. a4 {[%emt 0:00:31]} Ba6 {[%emt 0:05:16]} 13. Re1 $1 {[%emt 0:00:32][%cal Bf1e1,Be1e3,Be3g3][%mdl 32]} Bb4 {[%emt 0:12:06]} 14. Bd2 {[%emt 0:00:17]} Rb8 {[%emt 0:01:02]} 15. Ng3 {[%emt 0:05:55]} f6 {[%emt 0:01:11]} 16. Re3 {[%emt 0:16:42]} Qe7 {[%emt 0:07:18]} (16... Rf7 $11 {keeps the balance.}) 17. Nf5 $16 {[%emt 0:02:10]} Qe6 {[%emt 0:00:22]} 18. N3h4 {[%emt 0:10:00][%cal Od1g4] Hoping for Qg4!} g6 $2 {[%emt 0:25:02]} (18... Qe8 {is tougher.} 19. Rg3 g5) 19. Rg3 $18 {[%emt 0:08:21] White is clearly winning.} Kf7 {[%emt 0:00:40] [#]} 20. Nxg6 {[%emt 0:02:49][%mdl 512]} hxg6 {[%emt 0:00:19]} 21. Rxg6 {[%emt 0:00:05]} Rg8 {[%emt 0:00:47]} (21... Rh8 $142 22. Rg7+ Ke8 23. Bxb4 Rxb4) 22. Rxg8 {[%emt 0:00:47]} Rxg8 {[%emt 0:00:26]} 23. Qh5+ {[%emt 0:00:09] Weighted Error Value: White=0.07 (flawless) /Black=0.60.  Mistake:       	---       	Black=3      Inaccurate:     	White=1     	---        OK:         	White=7     	Black=5      Best:        	White=1     	Black=1      Strong:       	White=1     	---} 1-0

[Event "III Menorca Open-A 2024"]
[Site "Ciutadella Menorca"]
[Date "2024.04.04"]
[Round "4.9"]
[White "Pichot, Alan"]
[Black "Balakrishnan, Praveen"]
[Result "1/2-1/2"]
[ECO "B40"]
[WhiteElo "2644"]
[BlackElo "2500"]
[Annotator "RC"]
[PlyCount "113"]
[EventDate "2024.04.02"]
[EventType "swiss"]
[EventCountry "ESP"]
[SourceTitle "playchess.com"]
[Source "ChessBase"]
[SourceQuality "1"]
[TimeControl "5400+30"]

1. e4 {[%emt 0:00:03]} c5 {[%emt 0:07:23]} 2. Nf3 {[%emt 0:00:26]} e6 {[%emt 0:00:10]} 3. d4 {[%emt 0:01:02]} cxd4 {[%emt 0:00:06]} 4. Nxd4 {[%emt 0:00:06]} Nf6 {[%emt 0:00:06]} 5. Nc3 {[%emt 0:00:57]} Bb4 {[%emt 0:00:06]} 6. e5 {[%emt 0:01:04]} Nd5 {[%emt 0:00:06]} 7. Bd2 {[%emt 0:03:47]} Nxc3 {[%emt 0:00:22]} 8. bxc3 {[%emt 0:00:08]} Bf8 {[%emt 0:00:06]} 9. Qg4 {[%emt 0:05:01]} h5 {[%emt 0:01:50]} 10. Qg3 {[%emt 0:01:35]} h4 {[%emt 0:09:02]} 11. Qg4 {[%emt 0:01:57]} a6 {[%emt 0:14:34]} 12. Bd3 {[%emt 0:06:33]} d6 {[%emt 0:06:18]} 13. f4 {[%emt 0:02:19]} h3 {[%emt 0:04:02]} 14. O-O {[%emt 0:07:20]} Qh4 {[%emt 0:09:52]} 15. Qxh4 {[%emt 0:17:38]} Rxh4 {[%emt 0:00:07]} 16. f5 {[%emt 0:06:41]} hxg2 {[%emt 0:05:48]} 17. Kxg2 {[%emt 0:02:59]} dxe5 {[%emt 0:11:28]} 18. fxe6 {[%emt 0:00:07]} f6 {[%emt 0:02:39]} 19. Nf5 {[%emt 0:00:42]} Ra4 {[%emt 0:02:54]} 20. e7 {[%emt 0:01:35]} Bxe7 {[%emt 0:00:18]} 21. Nxg7+ {[%emt 0:00:15]} Kf7 {[%emt 0:00:42]} 22. Nf5 {[%emt 0:01:30]} Be6 {[%emt 0:00:49]} 23. h4 {[%emt 0:14:52]} Nd7 {[%emt 0:07:13]} 24. h5 {[%emt 0:00:36]} e4 {[%emt 0:05:21]} 25. Be2 {[%emt 0:03:43]} Rg8+ {[%emt 0:00:21]} 26. Kh1 {[%emt 0:00:16]} Bxf5 {[%emt 0:04:29]} 27. Rxf5 {[%emt 0:00:05]} e3 {[%emt 0:00:10]} 28. Be1 {[%emt 0:00:11]} Ne5 {[%emt 0:00:25]} 29. c4 {[%emt 0:02:15]} Nxc4 {[%emt 0:01:40]} 30. Rf4 {[%emt 0:02:06]} b5 {[%emt 0:00:54]} 31. Rd1 {[%emt 0:01:41]} Ne5 {[%emt 0:01:45]} 32. Rxa4 {[%emt 0:03:04]} bxa4 {[%emt 0:00:01]} 33. Bxa6 {[%emt 0:00:09]} Rg5 {[%emt 0:01:49]} 34. Be2 {[%emt 0:01:55]} Ng4 {[%emt 0:01:11]} 35. Bxg4 {[%emt 0:04:20]} Rxg4 {[%emt 0:00:05]} 36. Rd3 {[%emt 0:00:03]} Bc5 {[%emt 0:01:06]} 37. Rd5 {[%emt 0:00:55]} Rc4 {[%emt 0:01:04]} 38. c3 {[%emt 0:00:45]} Bf8 {[%emt 0:01:40]} 39. Kg2 {[%emt 0:00:15]} Ke6 {[%emt 0:00:30]} 40. Rd8 {[%emt 0:00:25]} Bh6 {[%emt 0:00:11]} 41. Rh8 {[%emt 0:01:11]} Bg5 {[%emt 0:00:18]} 42. Kf3 {[%emt 0:00:28]} Kf5 {[%emt 0:00:33]} 43. Rb8 {[%emt 0:01:04]} Rf4+ {[%emt 0:00:33]} 44. Ke2 {[%emt 0:00:07]} Kg4 {[%emt 0:01:08]} 45. Rh8 {[%emt 0:01:03]} Rf3 {[%emt 0:00:14]} 46. c4 {[%emt 0:00:37]} Rh3 {[%emt 0:00:17]} 47. c5 {[%emt 0:00:28]} Rh2+ {[%emt 0:00:48]} 48. Kd3 {[%emt 0:00:01]} Bf4 {[%emt 0:01:09]} 49. c6 {[%emt 0:00:46]} Rxh5 {[%emt 0:00:37]} 50. Rxh5 {[%emt 0:01:39]} Kxh5 {[%emt 0:00:01]} 51. Ba5 {[%emt 0:00:08]} Kg4 {[%emt 0:00:27]} 52. Ke2 {[%emt 0:00:11]} Kf5 {[%emt 0:00:35]} 53. c7 {[%emt 0:00:54]} Bxc7 {[%emt 0:00:04]} 54. Bxc7 {[%emt 0:00:05]} Ke4 {[%emt 0:00:04]} 55. Bb6 {[%emt 0:00:05]} f5 {[%emt 0:00:12]} 56. Bxe3 {[%emt 0:00:05]} f4 {[%emt 0:00:02]} 57. Bxf4 {[%emt 0:00:13]} 1/2-1/2

[Event "III Menorca Open-A 2024"]
[Site "Ciutadella Menorca"]
[Date "2024.04.04"]
[Round "4.10"]
[White "Siddharth, Jagadeesh"]
[Black "Lagarde, Maxime"]
[Result "1/2-1/2"]
[ECO "C02"]
[WhiteElo "2491"]
[BlackElo "2638"]
[Annotator "TA"]
[PlyCount "29"]
[EventDate "2024.04.02"]
[EventType "swiss"]
[EventCountry "ESP"]
[SourceTitle "playchess.com"]
[Source "ChessBase"]
[SourceQuality "1"]
[TimeControl "5400+30"]

{[%evp 11,29,14,2,3,84,77,87,52,51,39,38,30,58,64,46,45,59,51,64,54]} 1. e4 {[%emt 0:00:41]} e6 {[%emt 0:01:38]} 2. d4 {[%emt 0:00:45]} d5 {[%emt 0:00:03]} 3. e5 {[%emt 0:00:08]} c5 {[%emt 0:00:05]} 4. c3 {[%emt 0:00:03]} Ne7 {[%emt 0:00:10]} 5. Nf3 {[%emt 0:00:12]} Nbc6 {[%emt 0:00:05]} 6. Na3 {[%emt 0:00:22]} Nf5 {[%emt 0:02:47]} 7. Nc2 {[%emt 0:00:11]} Qa5 {[%emt 0:00:53]} (7... cxd4 $11 8. cxd4 Qb6) 8. dxc5 $16 {[%emt 0:02:29]} Qc7 {[%emt 0:00:05]} 9. Bd3 {[%emt 0:03:55] White is better.} Bxc5 {[%emt 0:01:29]} 10. Bxf5 {[%emt 0:06:00]} exf5 {[%emt 0:00:04]} 11. Qxd5 {[%emt 0:00:18]} Qb6 {[%emt 0:00:45]} 12. O-O {[%emt 0:03:29] White is slightly better.} Be6 {[%emt 0:03:30]} 13. Qd3 {[%emt 0:00:08]} Rd8 {[%emt 0:01:43]} 14. Qe2 {[%emt 0:00:17]} a5 {[%emt 0:02:34]} 15. Be3 {[%emt 0:02:00] Weighted Error Value: White=0.06 (flawless) /Black=0.19 (very precise) .  Mistake:       	---       	Black=1      Inaccurate:     	White=1     	Black=1      OK:         	White=3     	Black=4      Best:        	White=1     	---} 1/2-1/2